[Event "11th LCC FIDE Open 2019"]
[Site "London"]
[Date "2019.12.01"]
[Round "4.41"]
[White "Villiers, Thomas"]
[Black "Patel, Rishi"]
[Result "1-0"]
[ECO "A27"]
[WhiteElo "2145"]
[BlackElo "1891"]
[Annotator "NA"]
[PlyCount "73"]
[EventDate "2019.11.29"]
[EventType "swiss"]
[EventCountry "ENG"]
[SourceTitle "playchess.com"]
[Source "ChessBase"]
[SourceQuality "1"]
[TimeControl "40/5400+30:1800+30"]

1. c4 {[%emt 0:00:00]} e5 {[%emt 0:03:32]} 2. Nc3 {[%emt 0:00:00]} Bc5 {[%emt 0:00:11]} 3. Nf3 {[%emt 0:00:00]} Nc6 {[%emt 0:00:07]} 4. e3 {[%emt 0:00:22]} d6 {[%emt 0:00:23]} 5. d4 {[%emt 0:00:45]} Bb6 {[%emt 0:00:25]} 6. b4 {[%emt 0:02:44]} a6 {[%emt 0:01:04]} 7. Be2 {[%emt 0:01:52]} Bd7 {[%emt 0:01:01]} 8. Nd5 {[%emt 0:01:56]} Ba7 {[%emt 0:00:39]} 9. b5 {[%emt 0:00:27]} e4 {[%emt 0:16:44]} 10. bxc6 {[%emt 0:02:59]} bxc6 {[%emt 0:00:09]} 11. Nb4 {[%emt 0:01:34]} a5 {[%emt 0:00:42]} 12. Nc2 {[%emt 0:01:43]} exf3 {[%emt 0:00:26]} 13. Bxf3 {[%emt 0:00:04]} Ne7 {[%emt 0:00:20]} 14. O-O {[%emt 0:00:35]} O-O {[%emt 0:00:19]} 15. e4 {[%emt 0:00:22]} d5 {[%emt 0:04:09]} 16. c5 {[%emt 0:00:40]} dxe4 {[%emt 0:00:28]} 17. Bxe4 {[%emt 0:00:04]} Nd5 {[%emt 0:00:07]} 18. Ne3 {[%emt 0:01:42]} Be6 {[%emt 0:05:57]} 19. Qd3 {[%emt 0:02:38]} g6 {[%emt 0:00:46]} 20. Nc4 {[%emt 0:00:45]} Nb4 {[%emt 0:01:03]} 21. Qc3 {[%emt 0:00:11]} Nd5 {[%emt 0:06:55]} 22. Bxd5 {[%emt 0:08:06]} cxd5 {[%emt 0:03:48]} 23. Nxa5 {[%emt 0:00:05]} Qc8 {[%emt 0:02:04]} 24. Nc6 {[%emt 0:00:38]} Qe8 {[%emt 0:00:33]} 25. Nxa7 {[%emt 0:00:13]} Rxa7 {[%emt 0:00:10]} 26. Bh6 {[%emt 0:00:03]} Qb5 {[%emt 0:02:23]} 27. Bxf8 {[%emt 0:00:29]} Kxf8 {[%emt 0:00:08]} 28. Rfb1 {[%emt 0:00:29]} Qc4 {[%emt 0:01:57]} 29. Qxc4 {[%emt 0:01:27]} dxc4 {[%emt 0:00:04]} 30. a4 {[%emt 0:00:11]} Ke7 {[%emt 0:01:10]} 31. a5 {[%emt 0:00:32]} Bc8 {[%emt 0:00:48]} 32. d5 {[%emt 0:00:42]} Bf5 {[%emt 0:01:42]} 33. Rb4 {[%emt 0:00:59]} Bd3 {[%emt 0:03:56]} 34. f4 {[%emt 0:00:10]} Kf6 {[%emt 0:02:03]} 35. Kf2 {[%emt 0:00:18]} Kf5 {[%emt 0:00:39]} 36. Ke3 {[%emt 0:00:14]} Ra8 {[%emt 0:00:37]} 37. Kd4 {[%emt 0:01:01]} 1-0

[Event "11th LCC FIDE Open 2019"]
[Site "London"]
[Date "2019.12.01"]
[Round "4.42"]
[White "Finn, Peter"]
[Black "Stanisz, Patryk"]
[Result "0-1"]
[ECO "B33"]
[WhiteElo "1895"]
[BlackElo "2139"]
[Annotator "ChessBase"]
[PlyCount "84"]
[EventDate "2019.11.29"]
[EventType "swiss"]
[EventCountry "ENG"]
[SourceTitle "playchess.com"]
[Source "ChessBase"]
[SourceQuality "1"]
[TimeControl "40/5400+30:1800+30"]

1. e4 {[%emt 1:01:45]} c5 {[%emt 0:02:48]} 2. Nf3 {[%emt 0:00:07]} Nc6 {[%emt 0:00:04]} 3. d4 {[%emt 0:00:00]} cxd4 {[%emt 0:00:00]} 4. Nxd4 {[%emt 0:00:00]} Nf6 {[%emt 0:00:00]} 5. Nc3 {[%emt 0:00:00]} e5 {[%emt 0:00:00]} 6. Ndb5 {[%emt 0:00:00]} d6 {[%emt 0:00:00]} 7. Bg5 {[%emt 0:00:00]} a6 {[%emt 0:00:00]} 8. Na3 {[%emt 0:00:00]} b5 {[%emt 0:00:00]} 9. Bxf6 {[%emt 0:00:00]} gxf6 {[%emt 0:00:00]} 10. Nd5 {[%emt 0:00:00]} Bg7 {[%emt 0:00:00]} 11. Bd3 {[%emt 0:00:00]} Ne7 {[%emt 0:00:00]} 12. Nxe7 {[%emt 0:00:00]} Qxe7 {[%emt 0:00:00]} 13. O-O {[%emt 0:00:00]} O-O {[%emt 0:00:04]} 14. c4 {[%emt 0:00:00]} f5 {[%emt 0:00:13]} 15. Qf3 {[%emt 0:00:00]} bxc4 {[%emt 0:30:24]} 16. Nxc4 {[%emt 0:00:00]} d5 {[%emt 0:00:18]} 17. exd5 {[%emt 0:00:00]} e4 {[%emt 0:00:26]} 18. Qe3 {[%emt 0:00:00]} Qf6 {[%emt 0:06:36]} 19. Bc2 {[%emt 0:00:00]} Bb7 {[%emt 0:08:16]} 20. Rad1 {[%emt 0:00:00]} Rad8 {[%emt 0:06:45]} 21. d6 {[%emt 0:00:00]} f4 {[%emt 0:05:31]} 22. Qh3 {[%emt 0:00:00]} Qg5 {[%emt 0:02:35]} 23. d7 {[%emt 0:00:00]} f5 {[%emt 0:09:02]} 24. Nd6 {[%emt 0:02:43]} Rxd7 {[%emt 0:01:23]} 25. Qb3+ {[%emt 0:00:16]} Kh8 {[%emt 0:00:55]} 26. Nxb7 {[%emt 0:00:10]} f3 {[%emt 0:00:16]} 27. g3 {[%emt 0:00:28]} Qg4 {[%emt 0:03:51]} 28. Kh1 {[%emt 0:00:11]} Qh3 {[%emt 0:00:28]} 29. Rg1 {[%emt 0:00:08]} Rf6 {[%emt 0:00:31]} 30. Qe3 {[%emt 0:06:59]} Rxd1 {[%emt 0:02:35]} 31. Bxd1 {[%emt 0:00:42]} Rh6 {[%emt 0:00:06]} 32. Qxh6 {[%emt 0:01:49]} Bxh6 {[%emt 0:00:02]} 33. Nc5 {[%emt 0:04:17]} e3 {[%emt 0:02:32]} 34. Nd3 {[%emt 0:00:35]} e2 {[%emt 0:00:05]} 35. Bb3 {[%emt 0:01:08]} Bd2 {[%emt 0:00:18]} 36. Bd5 {[%emt 0:00:27]} e1=Q {[%emt 0:01:00]} 37. Nxe1 {[%emt 0:00:24]} Bxe1 {[%emt 0:00:08]} 38. Bxf3 {[%emt 0:00:31]} Bxf2 {[%emt 0:00:13]} 39. Rg2 {[%emt 0:00:56]} Bd4 {[%emt 0:02:51]} 40. Be2 {[%emt 0:03:33]} a5 {[%emt 0:01:37]} 41. Bc4 {[%emt 0:31:19]} Qh6 {[%emt 0:30:34]} 42. Rc2 {[%emt 0:01:01]} Qc6+ {[%emt 0:00:17]} 0-1

[Event "11th LCC FIDE Open 2019"]
[Site "London"]
[Date "2019.12.01"]
[Round "4.43"]
[White "Sedykh, Mikhail"]
[Black "Mugalu, Hassan"]
[Result "1-0"]
[ECO "E91"]
[WhiteElo "2134"]
[BlackElo "1836"]
[Annotator "NA"]
[PlyCount "49"]
[EventDate "2019.11.29"]
[EventType "swiss"]
[EventCountry "ENG"]
[SourceTitle "playchess.com"]
[Source "ChessBase"]
[SourceQuality "1"]
[TimeControl "40/5400+30:1800+30"]

1. d4 {[%emt 0:00:00]} Nf6 {[%emt 0:00:23]} 2. c4 {[%emt 0:00:00]} g6 {[%emt 0:00:53]} 3. Nc3 {[%emt 0:00:00]} Bg7 {[%emt 0:00:41]} 4. e4 {[%emt 0:00:08]} d6 {[%emt 0:00:26]} 5. Nf3 {[%emt 0:00:15]} Nbd7 {[%emt 0:01:58]} 6. Be2 {[%emt 0:02:23]} O-O {[%emt 0:00:58]} 7. O-O {[%emt 0:00:06]} c5 {[%emt 0:03:19]} 8. d5 {[%emt 0:01:04]} Ng4 {[%emt 0:01:54]} 9. Ng5 {[%emt 0:07:49]} Ndf6 {[%emt 0:08:13]} 10. h3 {[%emt 0:04:52]} Ne5 {[%emt 0:03:22]} 11. f4 {[%emt 0:00:27]} Ned7 {[%emt 0:01:04]} 12. Be3 {[%emt 0:06:53]} h6 {[%emt 0:07:16]} 13. Nf3 {[%emt 0:00:55]} Nh5 {[%emt 0:01:36]} 14. Kh2 {[%emt 0:01:17]} a6 {[%emt 0:07:20]} 15. Qd2 {[%emt 0:02:46]} Kh7 {[%emt 0:02:35]} 16. Bd3 {[%emt 0:06:14]} Rg8 {[%emt 0:06:04]} 17. g4 {[%emt 0:08:04]} Nhf6 {[%emt 0:02:26]} 18. e5 {[%emt 0:02:24]} Ne8 {[%emt 0:01:52]} 19. e6 {[%emt 0:00:50]} fxe6 {[%emt 0:02:05]} 20. Bxg6+ {[%emt 0:00:52]} Kxg6 {[%emt 0:04:38]} 21. Qd3+ {[%emt 0:00:28]} Kf7 {[%emt 0:03:17]} 22. dxe6+ {[%emt 0:00:11]} Kf8 {[%emt 0:04:15]} 23. Qg6 {[%emt 0:00:22]} Ne5 {[%emt 0:01:35]} 24. fxe5 {[%emt 0:00:14]} Bxe6 {[%emt 0:01:02]} 25. Ng5+ {[%emt 0:23:43] Rh8} 1-0

[Event "11th LCC FIDE Open 2019"]
[Site "London"]
[Date "2019.12.01"]
[Round "4.45"]
[White "Davis, Holden"]
[Black "Bucher, Grant W"]
[Result "1/2-1/2"]
[ECO "C55"]
[WhiteElo "1840"]
[BlackElo "2121"]
[Annotator "ChessBase"]
[PlyCount "81"]
[EventDate "2019.11.29"]
[EventType "swiss"]
[EventCountry "ENG"]
[SourceTitle "playchess.com"]
[Source "ChessBase"]
[SourceQuality "1"]
[TimeControl "40/5400+30:1800+30"]

1. e4 {[%emt 0:00:00]} e5 {[%emt 0:00:00]} 2. Nf3 {[%emt 0:00:13]} Nc6 {[%emt 0:00:00]} 3. Bc4 {[%emt 0:00:06]} Nf6 {[%emt 0:00:00]} 4. d3 {[%emt 0:00:05]} Be7 {[%emt 0:00:00]} 5. O-O {[%emt 0:00:06]} O-O {[%emt 0:00:00]} 6. Re1 {[%emt 0:00:05]} d6 {[%emt 0:00:10]} 7. a4 {[%emt 0:00:06]} Na5 {[%emt 0:00:13]} 8. Ba2 {[%emt 0:00:06]} c5 {[%emt 0:00:08]} 9. c3 {[%emt 0:00:04]} Nc6 {[%emt 0:00:38]} 10. h3 {[%emt 0:01:18]} h6 {[%emt 0:00:47]} 11. Na3 {[%emt 0:00:05]} a6 {[%emt 0:05:58]} 12. Bd2 {[%emt 0:00:16]} Re8 {[%emt 0:06:24]} 13. b4 {[%emt 0:05:18]} Bf8 {[%emt 0:32:14]} 14. Qe2 {[%emt 0:15:23]} cxb4 {[%emt 0:09:27]} 15. cxb4 {[%emt 0:00:17]} d5 {[%emt 0:01:28]} 16. Nc2 {[%emt 0:14:01]} Be6 {[%emt 0:04:05]} 17. b5 {[%emt 0:04:08]} axb5 {[%emt 0:05:21]} 18. axb5 {[%emt 0:00:08]} dxe4 {[%emt 0:08:47]} 19. dxe4 {[%emt 0:11:31]} Rxa2 {[%emt 0:03:07]} 20. Rxa2 {[%emt 0:01:29]} Bxa2 {[%emt 0:00:05]} 21. bxc6 {[%emt 0:00:07]} bxc6 {[%emt 0:00:03]} 22. Nb4 {[%emt 0:01:38]} Bxb4 {[%emt 0:06:45]} 23. Bxb4 {[%emt 0:00:05]} Be6 {[%emt 0:03:11]} 24. Nxe5 {[%emt 0:08:52]} Qd4 {[%emt 0:05:54]} 25. Nxc6 {[%emt 0:04:28]} Qb6 {[%emt 0:00:24]} 26. Ne7+ {[%emt 0:01:24]} Kh8 {[%emt 0:00:10]} 27. Qd2 {[%emt 0:05:42]} Qb7 {[%emt 0:02:08]} 28. e5 {[%emt 0:04:47]} Nd5 {[%emt 0:03:43]} 29. Nxd5 {[%emt 0:00:18]} Qxd5 {[%emt 0:00:22]} 30. Qxd5 {[%emt 0:01:05]} Bxd5 {[%emt 0:06:20]} 31. Kh2 {[%emt 0:06:15]} Rb8 {[%emt 0:00:00]} 32. Bc3 {[%emt 0:00:19]} Rc8 {[%emt 0:00:00]} 33. Re3 {[%emt 0:00:11]} Be6 {[%emt 0:00:00]} 34. f4 {[%emt 0:00:48]} Rc4 {[%emt 0:00:00]} 35. Kg3 {[%emt 0:03:42]} Kh7 {[%emt 0:00:00]} 36. Kf3 {[%emt 0:02:16]} Bd5+ {[%emt 0:00:00]} 37. Kg3 {[%emt 0:00:15]} Be6 {[%emt 0:00:00]} 38. Rf3 {[%emt 0:05:01]} Bd5 {[%emt 0:00:00]} 39. Rd3 {[%emt 0:00:13]} Be4 {[%emt 0:00:00]} 40. Re3 {[%emt 0:00:07]} Kg6 {[%emt 0:00:23]} 41. Kf2 {[%emt 0:37:27]} 1/2-1/2

[Event "11th LCC FIDE Open 2019"]
[Site "London"]
[Date "2019.12.01"]
[Round "4.48"]
[White "Marusenko, Petr"]
[Black "Gilmore, Samuel"]
[Result "1-0"]
[ECO "B18"]
[WhiteElo "2085"]
[BlackElo "1757"]
[Annotator "NA"]
[PlyCount "39"]
[EventDate "2019.11.29"]
[EventType "swiss"]
[EventCountry "ENG"]
[SourceTitle "playchess.com"]
[Source "ChessBase"]
[SourceQuality "1"]
[TimeControl "40/5400+30:1800+30"]

1. e4 {[%emt 0:05:21]} c6 {[%emt 0:00:00]} 2. d4 {[%emt 0:00:13]} d5 {[%emt 0:00:00]} 3. Nc3 {[%emt 0:00:05]} dxe4 {[%emt 0:00:00]} 4. Nxe4 {[%emt 0:00:05]} Bf5 {[%emt 0:00:01]} 5. Ng3 {[%emt 0:00:07]} Bg6 {[%emt 0:00:12]} 6. N1e2 {[%emt 0:00:03]} e6 {[%emt 0:02:48]} 7. h4 {[%emt 0:00:24]} h6 {[%emt 0:00:08]} 8. Nf4 {[%emt 0:00:04]} Bh7 {[%emt 0:00:26]} 9. Bc4 {[%emt 0:00:06]} Nf6 {[%emt 0:06:11]} 10. O-O {[%emt 0:00:16]} Nd5 {[%emt 0:03:02]} 11. Re1 {[%emt 0:08:52]} Nxf4 {[%emt 0:07:06]} 12. Bxf4 {[%emt 0:03:31]} Qxh4 {[%emt 0:15:10]} 13. Qf3 {[%emt 0:14:07]} Be7 {[%emt 0:06:01]} 14. Nh5 {[%emt 0:14:28]} O-O {[%emt 0:14:59]} 15. Be5 {[%emt 0:04:36]} Nd7 {[%emt 0:03:50]} 16. Bxg7 {[%emt 0:04:31]} Rfd8 {[%emt 0:03:14]} 17. Rxe6 {[%emt 0:06:53]} Nb6 {[%emt 0:00:49]} 18. Re4 {[%emt 0:02:19]} Nxc4 {[%emt 0:01:15]} 19. Rxh4 {[%emt 0:03:12]} Bxh4 {[%emt 0:00:09]} 20. Bf6 {[%emt 0:00:56]} 1-0

[Event "11th LCC FIDE Open 2019"]
[Site "London"]
[Date "2019.12.01"]
[Round "4.49"]
[White "Tombolis, Christopher"]
[Black "Semprun Martinez, Fernando"]
[Result "0-1"]
[ECO "A58"]
[WhiteElo "1824"]
[BlackElo "2071"]
[Annotator "NA"]
[PlyCount "88"]
[EventDate "2019.11.29"]
[EventType "swiss"]
[EventCountry "ENG"]
[SourceTitle "playchess.com"]
[Source "ChessBase"]
[SourceQuality "1"]
[TimeControl "40/5400+30:1800+30"]

1. d4 {[%emt 0:00:00]} Nf6 {[%emt 0:00:00]} 2. c4 {[%emt 0:00:40]} c5 {[%emt 0:00:00]} 3. d5 {[%emt 0:00:13]} b5 {[%emt 0:00:00]} 4. cxb5 {[%emt 0:00:24]} a6 {[%emt 0:00:00]} 5. bxa6 {[%emt 0:00:16]} g6 {[%emt 0:00:00]} 6. Nc3 {[%emt 0:00:06]} Bg7 {[%emt 0:00:00]} 7. Nf3 {[%emt 0:00:03]} O-O {[%emt 0:00:00]} 8. g3 {[%emt 0:00:04]} d6 {[%emt 0:00:00]} 9. Bg2 {[%emt 0:00:07]} Nbd7 {[%emt 0:00:00]} 10. O-O {[%emt 0:00:53]} Nb6 {[%emt 0:00:11]} 11. Nd2 {[%emt 0:02:36]} Bxa6 {[%emt 0:04:16]} 12. Qc2 {[%emt 0:05:44]} Nfd7 {[%emt 0:03:25]} 13. b3 {[%emt 0:04:57]} Bxe2 {[%emt 0:01:12]} 14. Re1 {[%emt 0:00:01]} Bg4 {[%emt 0:03:23]} 15. Bb2 {[%emt 0:01:35]} Bf5 {[%emt 0:02:15]} 16. Nde4 {[%emt 0:14:38]} Nf6 {[%emt 0:11:21]} 17. Nxf6+ {[%emt 0:00:28]} Bxf6 {[%emt 0:00:10]} 18. Be4 {[%emt 0:00:43]} Bxe4 {[%emt 0:02:33]} 19. Qxe4 {[%emt 0:01:19]} Ra6 {[%emt 0:08:39]} 20. a4 {[%emt 0:04:03]} Qa8 {[%emt 0:07:06]} 21. Rad1 {[%emt 0:04:46]} Rc8 {[%emt 0:03:58]} 22. Qf3 {[%emt 0:20:54]} Qb7 {[%emt 0:06:21]} 23. Ba1 {[%emt 0:05:26]} Nd7 {[%emt 0:09:39]} 24. Nb5 {[%emt 0:02:46]} Bxa1 {[%emt 0:07:14]} 25. Rxa1 {[%emt 0:00:42]} Ne5 {[%emt 0:08:05]} 26. Qd1 {[%emt 0:04:39]} c4 {[%emt 0:01:05]} 27. Re3 {[%emt 0:03:46]} Rc5 {[%emt 0:02:19]} 28. bxc4 {[%emt 0:01:24]} Nxc4 {[%emt 0:01:02]} 29. Rc3 {[%emt 0:06:17]} Nb2 {[%emt 0:09:15]} 30. Qc2 {[%emt 0:01:14]} Rxc3 {[%emt 0:02:23]} 31. Nxc3 {[%emt 0:00:18]} Nc4 {[%emt 0:01:02]} 32. Rb1 {[%emt 0:02:00]} Rb6 {[%emt 0:03:21]} 33. Rxb6 {[%emt 0:01:23]} Qxb6 {[%emt 0:01:14]} 34. Qe4 {[%emt 0:00:55]} Qb3 {[%emt 0:01:28]} 35. Qd4 {[%emt 0:00:42]} Ne5 {[%emt 0:01:22]} 36. Kg2 {[%emt 0:01:51]} Qa3 {[%emt 0:00:17]} 37. h3 {[%emt 0:01:49]} h5 {[%emt 0:00:10]} 38. Qe3 {[%emt 0:00:08]} Kg7 {[%emt 0:00:43]} 39. Qd4 {[%emt 0:01:02]} f6 {[%emt 0:00:56]} 40. Qe3 {[%emt 0:01:11]} Qb4 {[%emt 0:00:43]} 41. Kh2 {[%emt 0:31:54]} h4 {[%emt 0:31:15]} 42. g4 {[%emt 0:05:03]} g5 {[%emt 0:00:23]} 43. Ne2 {[%emt 0:00:00]} Qxa4 {[%emt 0:00:00]} 44. Nd4 {[%emt 0:00:00]} Qxd4 {[%emt 0:00:00]} 0-1

[Event "11th LCC FIDE Open 2019"]
[Site "London"]
[Date "2019.12.01"]
[Round "4.50"]
[White "Ahn, Sungmin"]
[Black "Wilks, Simon"]
[Result "1-0"]
[ECO "C04"]
[WhiteElo "1780"]
[BlackElo "2071"]
[Annotator "NA RC"]
[PlyCount "101"]
[EventDate "2019.11.29"]
[EventType "swiss"]
[EventCountry "ENG"]
[SourceTitle "playchess.com"]
[Source "ChessBase"]
[SourceQuality "1"]
[TimeControl "40/5400+30:1800+30"]

1. e4 {[%emt 1:01:25]} e6 {[%emt 0:04:28]} 2. d4 {[%emt 0:01:28]} d5 {[%emt 0:00:05]} 3. Nd2 {[%emt 0:00:02]} Nc6 {[%emt 0:00:22]} 4. Ngf3 {[%emt 0:02:28]} Nf6 {[%emt 0:00:12]} 5. e5 {[%emt 0:00:03]} Nd7 {[%emt 0:00:05]} 6. Bd3 {[%emt 0:00:06]} f6 {[%emt 0:00:44]} 7. Ng5 {[%emt 0:02:12]} Ndxe5 {[%emt 0:02:07]} 8. dxe5 {[%emt 0:02:43]} fxg5 {[%emt 0:00:08]} 9. Qh5+ {[%emt 0:01:51]} Kd7 {[%emt 0:01:45]} 10. Nf3 {[%emt 0:03:49]} g6 {[%emt 0:02:01]} 11. Qg4 {[%emt 0:09:18]} Nb4 {[%emt 0:22:01]} 12. Bxg5 {[%emt 0:06:49]} Nxd3+ {[%emt 0:07:16]} 13. cxd3 {[%emt 0:00:06]} Be7 {[%emt 0:00:28]} 14. Rc1 {[%emt 0:02:45]} c6 {[%emt 0:03:29]} 15. O-O {[%emt 0:01:21]} Qf8 {[%emt 0:05:04]} 16. Nd4 {[%emt 0:05:48]} Bxg5 {[%emt 0:10:24]} 17. Qxg5 {[%emt 0:00:03]} Qe7 {[%emt 0:00:40]} 18. Qd2 {[%emt 0:03:38]} Ke8 {[%emt 0:01:27]} 19. b4 {[%emt 0:02:56]} Bd7 {[%emt 0:01:59]} 20. Rc2 {[%emt 0:05:16]} Kf7 {[%emt 0:02:59]} 21. Nb3 {[%emt 0:09:43]} Kg7 {[%emt 0:02:25]} 22. d4 {[%emt 0:02:27]} Rhf8 {[%emt 0:01:57]} 23. a3 {[%emt 0:01:39]} Rad8 {[%emt 0:04:41]} 24. Rc3 {[%emt 0:00:28]} Rf5 {[%emt 0:01:28]} 25. Rh3 {[%emt 0:00:13]} Rdf8 {[%emt 0:02:51]} 26. Nc5 {[%emt 0:04:50]} Bc8 {[%emt 0:00:25]} 27. Nd3 {[%emt 0:00:13]} b6 {[%emt 0:01:36]} 28. Rc1 {[%emt 0:03:52]} Ba6 {[%emt 0:03:05]} 29. f3 {[%emt 0:09:03]} Bc4 {[%emt 0:01:15]} 30. Nf2 {[%emt 0:00:46]} Qg5 {[%emt 0:01:00]} 31. Qxg5 {[%emt 0:02:23]} Rxg5 {[%emt 0:00:04]} 32. Ng4 {[%emt 0:00:15]} Rf4 {[%emt 0:04:19]} 33. Rd1 {[%emt 0:02:47]} h5 {[%emt 0:02:29]} 34. Nf6 {[%emt 0:00:09]} Be2 {[%emt 0:01:54]} 35. Rd2 {[%emt 0:00:01]} Bxf3 {[%emt 0:06:22]} 36. Rg3 {[%emt 0:02:48]} Rff5 {[%emt 0:01:17]} 37. gxf3 {[%emt 0:01:32]} Rxg3+ {[%emt 0:00:09]} 38. hxg3 {[%emt 0:00:06]} Rxf3 {[%emt 0:00:06]} 39. Kg2 {[%emt 0:01:40]} Rxa3 {[%emt 0:00:51]} 40. Rc2 {[%emt 0:04:48]} Rb3 {[%emt 0:02:25]} 41. Rxc6 {[%emt 0:00:14]} Rxb4 {[%emt 0:00:06]} 42. Rxe6 {[%emt 0:00:36]} Kf7 {[%emt 0:00:34]} 43. Rd6 {[%emt 0:00:48]} Rxd4 {[%emt 0:00:17]} 44. Nxd5 {[%emt 0:01:40]} Re4 {[%emt 0:04:35]} 45. Rf6+ {[%emt 0:04:11]} Ke8 {[%emt 0:00:21]} 46. e6 {[%emt 0:02:34]} Re5 {[%emt 0:08:26]} 47. Nf4 {[%emt 0:00:55]} Rf5 {[%emt 0:01:09]} 48. Rxg6 {[%emt 0:00:53]} h4 {[%emt 0:05:14]} 49. Rg7 {[%emt 0:00:44]} Rf6 {[%emt 0:03:26]} 50. Rxa7 {[%emt 0:01:45]} hxg3 {[%emt 0:00:29]} 51. Ra8+ {[%emt 0:00:23]} 1-0

[Event "11th LCC FIDE Open 2019"]
[Site "London"]
[Date "2019.12.01"]
[Round "4.51"]
[White "Chilton, James I"]
[Black "Grigoryan, Meri"]
[Result "1/2-1/2"]
[ECO "B01"]
[WhiteElo "1711"]
[BlackElo "2050"]
[Annotator "NA"]
[PlyCount "85"]
[EventDate "2019.11.29"]
[EventType "swiss"]
[EventCountry "ENG"]
[SourceTitle "playchess.com"]
[Source "ChessBase"]
[SourceQuality "1"]
[TimeControl "40/5400+30:1800+30"]

1. e4 {[%emt 1:01:08]} d5 {[%emt 0:02:45]} 2. exd5 {[%emt 0:00:03]} Qxd5 {[%emt 0:00:05]} 3. Nc3 {[%emt 0:00:04]} Qd6 {[%emt 0:00:39]} 4. d4 {[%emt 0:00:04]} Nf6 {[%emt 0:00:42]} 5. Nf3 {[%emt 0:00:10]} a6 {[%emt 0:01:58]} 6. Bd3 {[%emt 0:04:11]} b5 {[%emt 0:07:16]} 7. O-O {[%emt 0:03:03]} Bb7 {[%emt 0:01:25]} 8. Re1 {[%emt 0:06:20]} Nbd7 {[%emt 0:03:34]} 9. Ne4 {[%emt 0:11:29]} Qb6 {[%emt 0:09:20]} 10. Bf4 {[%emt 0:03:54]} e6 {[%emt 0:13:31]} 11. c3 {[%emt 0:07:05]} Nxe4 {[%emt 0:15:27]} 12. Bxe4 {[%emt 0:00:09]} Bxe4 {[%emt 0:00:12]} 13. Rxe4 {[%emt 0:00:04]} Nf6 {[%emt 0:00:07]} 14. Re2 {[%emt 0:01:21]} Be7 {[%emt 0:01:53]} 15. a4 {[%emt 0:01:41]} O-O {[%emt 0:01:03]} 16. a5 {[%emt 0:01:57]} Qb7 {[%emt 0:03:40]} 17. Qc2 {[%emt 0:01:03]} c5 {[%emt 0:01:58]} 18. Rd1 {[%emt 0:08:01]} cxd4 {[%emt 0:06:23]} 19. Rxd4 {[%emt 0:01:40]} Rfd8 {[%emt 0:03:07]} 20. Red2 {[%emt 0:01:49]} Rxd4 {[%emt 0:02:41]} 21. Rxd4 {[%emt 0:03:03]} Rd8 {[%emt 0:01:55]} 22. Qd3 {[%emt 0:02:29]} Rxd4 {[%emt 0:01:32]} 23. Qxd4 {[%emt 0:01:22]} Qd5 {[%emt 0:04:07]} 24. h3 {[%emt 0:04:11]} Bc5 {[%emt 0:02:06]} 25. Qe5 {[%emt 0:02:38]} Qxe5 {[%emt 0:07:02]} 26. Nxe5 {[%emt 0:02:57]} Nd5 {[%emt 0:03:27]} 27. Nd7 {[%emt 0:02:21]} Ba7 {[%emt 0:01:31]} 28. Bd6 {[%emt 0:03:52]} f6 {[%emt 0:00:07]} 29. Bc5 {[%emt 0:05:16]} Bxc5 {[%emt 0:00:04]} 30. Nxc5 {[%emt 0:00:04]} Nc7 {[%emt 0:00:02]} 31. b4 {[%emt 0:03:56]} Kf7 {[%emt 0:00:15]} 32. Kf1 {[%emt 0:00:20]} Ke7 {[%emt 0:00:14]} 33. Ke2 {[%emt 0:00:14]} Kd6 {[%emt 0:00:46]} 34. Kd3 {[%emt 0:00:37]} Kd5 {[%emt 0:01:19]} 35. f3 {[%emt 0:03:35]} h5 {[%emt 0:01:20]} 36. g3 {[%emt 0:01:53]} e5 {[%emt 0:00:57]} 37. g4 {[%emt 0:06:24]} hxg4 {[%emt 0:00:51]} 38. hxg4 {[%emt 0:00:27]} g6 {[%emt 0:00:26]} 39. Nd7 {[%emt 0:02:21]} Ke6 {[%emt 0:02:19]} 40. Nc5+ {[%emt 0:07:30]} Kd5 {[%emt 0:00:19]} 41. Nd7 {[%emt 0:00:36]} Ke6 {[%emt 0:08:33]} 42. Nc5+ {[%emt 0:00:10]} Kd5 {[%emt 0:00:06]} 43. Nd7 {[%emt 0:00:04] Ke4+ Kxe4} 1/2-1/2

[Event "11th LCC FIDE Open 2019"]
[Site "London"]
[Date "2019.12.01"]
[Round "4.52"]
[White "Phillips, Owen S"]
[Black "Cordes, Hans-Joerg"]
[Result "0-1"]
[ECO "A01"]
[WhiteElo "1902"]
[BlackElo "2188"]
[Annotator "ChessBase"]
[PlyCount "102"]
[EventDate "2019.11.29"]
[EventType "swiss"]
[EventCountry "ENG"]
[SourceTitle "playchess.com"]
[Source "ChessBase"]
[SourceQuality "1"]
[TimeControl "40/5400+30:1800+30"]

1. b3 {[%emt 1:01:01]} Nf6 {[%emt 0:03:10]} 2. Bb2 {[%emt 0:00:28]} g6 {[%emt 0:00:21]} 3. g3 {[%emt 0:00:18]} Bg7 {[%emt 0:00:12]} 4. Bg2 {[%emt 0:00:19]} O-O {[%emt 0:00:10]} 5. e4 {[%emt 0:01:38]} d6 {[%emt 0:01:28]} 6. d3 {[%emt 0:01:05]} e5 {[%emt 0:00:41]} 7. Nd2 {[%emt 0:04:23]} Nc6 {[%emt 0:04:17]} 8. Ne2 {[%emt 0:03:12]} d5 {[%emt 0:02:12]} 9. O-O {[%emt 0:01:24]} Be6 {[%emt 0:08:59]} 10. h3 {[%emt 0:02:21]} Qd7 {[%emt 0:03:14]} 11. Kh2 {[%emt 0:00:42]} Rad8 {[%emt 0:00:41]} 12. exd5 {[%emt 0:01:36]} Bxd5 {[%emt 0:10:41]} 13. Ne4 {[%emt 0:10:19]} Nxe4 {[%emt 0:10:24]} 14. dxe4 {[%emt 0:00:35]} Be6 {[%emt 0:00:07]} 15. Ba3 {[%emt 0:03:24]} Rfe8 {[%emt 0:01:29]} 16. Qxd7 {[%emt 0:16:02]} Rxd7 {[%emt 0:01:27]} 17. Rad1 {[%emt 0:00:12]} Red8 {[%emt 0:00:16]} 18. Rxd7 {[%emt 0:02:11]} Rxd7 {[%emt 0:00:07]} 19. Bc1 {[%emt 0:00:09]} Nb4 {[%emt 0:01:28]} 20. f4 {[%emt 0:02:20]} f6 {[%emt 0:03:00]} 21. f5 {[%emt 0:03:45]} Bf7 {[%emt 0:00:10]} 22. Nc3 {[%emt 0:05:02]} Nxc2 {[%emt 0:02:25]} 23. g4 {[%emt 0:00:20]} g5 {[%emt 0:01:14]} 24. Rf2 {[%emt 0:02:30]} Nb4 {[%emt 0:04:40]} 25. Bf1 {[%emt 0:01:12]} c6 {[%emt 0:02:51]} 26. Be3 {[%emt 0:02:44]} b5 {[%emt 0:04:42]} 27. a3 {[%emt 0:05:31]} Nd3 {[%emt 0:00:44]} 28. Rd2 {[%emt 0:01:13]} Nc5 {[%emt 0:00:14]} 29. Rxd7 {[%emt 0:04:27]} Nxd7 {[%emt 0:00:08]} 30. Nxb5 {[%emt 0:00:08]} cxb5 {[%emt 0:00:59]} 31. Bxb5 {[%emt 0:00:11]} Nb6 {[%emt 0:00:48]} 32. a4 {[%emt 0:03:33]} Bxb3 {[%emt 0:01:26]} 33. a5 {[%emt 0:00:56]} Nc4 {[%emt 0:00:47]} 34. Bxa7 {[%emt 0:01:40]} Nxa5 {[%emt 0:00:32]} 35. Bd7 {[%emt 0:01:50]} Bf8 {[%emt 0:01:25]} 36. Kg3 {[%emt 0:01:14]} Bb4 {[%emt 0:00:55]} 37. Bf2 {[%emt 0:01:16]} Kf7 {[%emt 0:05:01]} 38. h4 {[%emt 0:01:30]} h6 {[%emt 0:00:16]} 39. h5 {[%emt 0:00:58]} Ke7 {[%emt 0:00:27]} 40. Bb5 {[%emt 0:00:33]} Nc4 {[%emt 0:04:20]} 41. Bxc4 {[%emt 0:00:55]} Bxc4 {[%emt 0:00:06]} 42. Bb6 {[%emt 0:00:26]} Kd7 {[%emt 0:00:30]} 43. Kf3 {[%emt 0:00:35]} Bb3 {[%emt 0:02:27]} 44. Ke2 {[%emt 0:02:00]} Bc2 {[%emt 0:00:16]} 45. Kf3 {[%emt 0:01:00]} Bd1+ {[%emt 0:00:13]} 46. Kg3 {[%emt 0:00:40]} Be1+ {[%emt 0:00:46]} 47. Kh3 {[%emt 0:00:18]} Bf3 {[%emt 0:00:38]} 48. Bc5 {[%emt 0:00:10]} Ke8 {[%emt 0:00:11]} 49. Be3 {[%emt 0:01:57]} Bxe4 {[%emt 0:00:14]} 50. Kh2 {[%emt 0:00:56]} Bf3 {[%emt 0:02:12]} 51. Kh3 {[%emt 0:00:09]} Bb4 {[%emt 0:02:17]} 0-1